[Event "European Women-ch 2023"]
[Site "Petrovac"]
[Date "2023.03.20"]
[Round "3.18"]
[White "Zimina, Olga"]
[Black "Dwilewicz, Katarzyna"]
[Result "1-0"]
[ECO "E08"]
[WhiteElo "2295"]
[BlackElo "2114"]
[Annotator "TA"]
[PlyCount "115"]
[EventDate "2023.03.15"]
[EventType "swiss"]
[EventCountry "MNE"]
[SourceTitle "playchess.com"]
[Source "ChessBase"]
[SourceQuality "1"]
[TimeControl "40/5400+30:1800+30"]

{[%evp 18,115,22,0,0,0,0,-29,0,0,0,-17,-14,-23,-19,-35,-32,-29,-33,-75,13,0,0,0,6,10,6,6,13,32,35,52,107,103,96,62,61,72,60,61,61,51,52,53,45,17,26,0,0,0,0,0,0,0,0,0,0,0,0,0,21,21,21,21,21,21,21,21,21,8,79,79,80,8,5081,5133,4439,4072,2282,2306,2194,927,1204,710,29974,29968,29977,29978,29981,29982,29982,29982,29983,29983,29984,29985,29985,29986,29986,29986]} 1. d4 {[%emt 0:00:06]} Nf6 {[%emt 0:00:08]} 2. Nf3 {[%emt 0:00:10]} e6 {[%emt 0:00:13]} 3. g3 {[%emt 0:00:18]} d5 {[%emt 0:00:20]} 4. c4 {[%emt 0:00:55]} Bb4+ {[%emt 0:01:34]} 5. Bd2 {[%emt 0:00:06][%cal Bc1d2,Bd2f4,Bf4e3][%mdl 32]} Be7 {[%emt 0:00:05]} 6. Bg2 {[%emt 0:00:11]} O-O {[%emt 0:00:07]} 7. O-O {[%emt 0:00:25]} Nbd7 {[%emt 0:00:41]} 8. Qc2 {[%emt 0:01:05]} Ne4 {[%emt 0:01:15][%cal Bf6e4,Be4d6,Bd6f5][%mdl 32]} 9. Bf4 {[%emt 0:00:26]} c6 {[%emt 0:00:07]} 10. Nbd2 {[%emt 0:10:05]} g5 {[%emt 0:07:24] E08: Closed Catalan: Main Line: 7 Qc2.} 11. Be3 {[%emt 0:04:07]} Nd6 {[%emt 0:02:16]} 12. Ne1 {[%emt 0:07:18]} Nf5 {[%emt 0:04:16] Black has an edge.} 13. Qd3 {[%emt 0:08:28] [#]} Bd6 $146 {[%emt 0:09:15]} ({Predecessor:} 13... a5 14. Ndf3 Nxe3 15. Qxe3 dxc4 16. Ne5 Nxe5 17. dxe5 Ra6 18. Nf3 Qb6 19. Qc1 Qc5 20. Nxg5 Qxe5 {0-1 Guipi Bopala,P (1813)-Ouellet,M (2220) Montreal Pere Noel op 2022 (1)}) 14. Nc2 {[%emt 0:01:38]} Qe7 {[%emt 0:00:50]} 15. Rac1 {[%emt 0:01:56]} Nxe3 {[%emt 0:04:05]} 16. Nxe3 {[%emt 0:00:45]} f5 {[%emt 0:00:59]} 17. cxd5 {[%emt 0:03:33]} cxd5 {[%emt 0:01:12]} 18. Nf3 {[%emt 0:10:20]} h6 {[%emt 0:06:51]} (18... g4 $17 19. Ne1 Qg7) 19. Rc2 {[%emt 0:02:07]} Kg7 {[%emt 0:06:20]} 20. Rfc1 {[%emt 0:01:08]} b6 {[%emt 0:03:38] [#]} 21. Ne5 $1 {[%emt 0:06:58]} Nxe5 {[%emt 0:08:10]} 22. dxe5 {[%emt 0:00:06]} Bxe5 {[%emt 0:02:02] [#]} 23. Bxd5 {[%emt 0:01:17]} Rb8 {[%emt 0:10:48] Black is weak on the light squares} (23... exd5 24. Rxc8 Raxc8 25. Rxc8 $16 (25. Nxd5 $2 Rxc1+ 26. Kg2 Qe6 $19)) (23... Rd8 24. Qb3) 24. Bf3 {[%emt 0:07:19]} Bb7 {[%emt 0:03:14]} (24... Rd8 $14 25. Qb5 Bd6) 25. Qb5 $16 {[%emt 0:22:22]} Bd6 {[%emt 0:00:40]} 26. Nc4 {[%emt 0:01:39] White is more active.} (26. Rd2 {is more complex.} f4 27. Rcd1 a6 28. Qa4) 26... Bxf3 {[%emt 0:03:50]} 27. Nxd6 {[%emt 0:00:42]} Qxd6 {[%emt 0:02:42]} 28. exf3 {[%emt 0:00:50]} Rbd8 {[%emt 0:08:55]} 29. Rc6 {[%emt 0:02:37]} (29. Rc7+ {is interesting.} Rf7 30. R1c6 Qd5 31. Rxf7+ Kxf7 32. Rc7+) 29... Qd5 {[%emt 0:00:32]} 30. Qxd5 {[%emt 0:04:16]} exd5 $14 {[%emt 0:00:14][%cal Be6d5,Bd5d4][%mdl 4128] Endgame KRR-KRR} 31. Rc7+ {[%emt 0:00:16]} Rf7 {[%emt 0:00:21]} 32. Rxf7+ {[%emt 0:00:04]} (32. Kf1 $5 {[%cal Rc7f7]}) 32... Kxf7 $11 {[%emt 0:00:05] KR-KR} 33. Rc7+ {[%emt 0:00:04]} Ke6 {[%emt 0:01:57]} 34. Rxa7 {[%emt 0:00:06]} d4 {[%emt 0:00:27] ...d3 is the strong threat.} 35. Kf1 {[%emt 0:00:04]} Rc8 {[%emt 0:03:39]} (35... d3 36. Ke1 $14) 36. Rh7 {[%emt 0:01:09]} Rc1+ {[%emt 0:05:57]} 37. Ke2 {[%emt 0:00:05]} Rc2+ {[%emt 0:00:03]} 38. Kd3 {[%emt 0:00:04]} Rxb2 {[%emt 0:00:32]} 39. Kxd4 {[%emt 0:00:10]} Rxa2 {[%emt 0:03:18]} 40. Rxh6+ {[%emt 0:00:00]} Kf7 {[%emt 0:00:00]} 41. Rxb6 {[%emt 0:00:56] With the idea Ke3.} Rxf2 {[%emt 0:00:13]} 42. Ke5 {[%emt 0:00:47]} f4 {[%emt 0:10:08]} 43. g4 {[%emt 0:05:44] Hoping for Kf5.} Rxf3 {[%emt 0:05:17]} (43... Ra2 $1 $11 {remains equal.}) 44. Kf5 $16 {[%emt 0:00:15]} Rf2 {[%emt 0:07:25] [#]} 45. h3 {[%emt 0:11:26]} (45. Rb7+ $1 $16 Ke8 46. h3 (46. Kxg5 Rxh2 47. Kxf4 Rc2 $11)) 45... Rh2 $2 {[%emt 0:06:13][%mdl 8192] A mistake that costs the game.} (45... Rf3 $11) 46. Rb7+ $18 {[%emt 0:05:51]} (46. Kxg5 Rxh3 47. Rb7+ (47. Kxf4 Kg7 $11) 47... Kf8 $11) 46... Ke8 {[%emt 0:00:41]} 47. Rb3 {[%emt 0:01:24]} (47. Kxg5 Rxh3 48. Kxf4 Ra3 $11) 47... Re2 {[%emt 0:03:05]} 48. Kxg5 {[%emt 0:00:59]} Re3 {[%emt 0:00:04]} 49. Rb8+ {[%emt 0:00:52]} (49. Rxe3+ fxe3 50. h4 e2 51. h5 e1=Q 52. Kf6 Qe7+ 53. Kf5 Qe3 54. g5 Qf3+ 55. Ke5 Qxh5 56. Ke4 Qxg5 57. Kd4 Qd2+ 58. Ke4 Kf7 59. Kf3 Ke6 60. Ke4 Kf6 61. Kf3 Kf5 62. Kg3 Qe2 63. Kh3 Kf4 64. Kh4 Qh2#) 49... Ke7 {[%emt 0:00:03]} 50. h4 {[%emt 0:08:47][%cal Bh3h4,Bh4h5,Bh5h6,Bh6h7][%mdl 32]} ({Weaker is} 50. Kxf4 Rxh3 51. Kg5 (51. g5 Kf7 $11) 51... Rg3 $16) 50... Rh3 {[%emt 0:00:56]} 51. Rb5 {[%emt 0:01:39] White mates.} f3 {[%emt 0:00:51]} 52. Rf5 {[%emt 0:00:05]} Ke6 {[%emt 0:00:20]} 53. h5 {[%emt 0:00:12]} Ke7 {[%emt 0:00:21]} 54. Kg6 {[%emt 0:01:30]} Ke6 {[%emt 0:00:05]} 55. h6 {[%emt 0:00:24]} Rg3 {[%emt 0:00:20]} 56. g5 {[%emt 0:00:20]} Rh3 {[%emt 0:00:17]} 57. h7 {[%emt 0:00:30]} Ke7 {[%emt 0:01:03] [#]} 58. Rxf3 $3 {[%emt 0:00:33][%mdl 576] Deflection.   Weighted Error Value: White=0.10 (very precise) /Black=0.23 (precise)} 1-0

[Event "European Women-ch 2023"]
[Site "Petrovac"]
[Date "2023.03.20"]
[Round "3.18"]
[White "Kejzar, Petra"]
[Black "Karaivanova, Petya"]
[Result "1-0"]
[ECO "E04"]
[WhiteElo "2128"]
[BlackElo "1875"]
[Annotator "TA"]
[PlyCount "125"]
[EventDate "2023.03.15"]
[EventType "swiss"]
[EventCountry "MNE"]
[SourceTitle "playchess.com"]
[Source "ChessBase"]
[SourceQuality "1"]
[TimeControl "40/5400+30:1800+30"]

{[%evp 16,125,0,0,0,0,3,0,7,-19,20,14,58,57,44,55,62,55,61,63,84,51,92,58,133,132,235,230,233,212,352,342,320,170,497,497,578,483,466,458,466,456,648,396,385,383,393,379,393,389,424,337,387,397,384,383,381,381,369,278,517,498,499,491,557,533,606,602,605,516,664,631,674,660,838,841,811,802,894,891,800,731,712,521,802,793,818,813,1437,1364,1683,1695,1310,1213,29981,29982,29981,29982,29982,29983,29968,5035,29977,29978,29982,29979,29985,29984,29984,29985,29986,29987]} 1. d4 {[%emt 0:00:03]} d5 {[%emt 0:02:08]} 2. c4 {[%emt 0:00:06]} e6 {[%emt 0:00:03]} 3. Nf3 {[%emt 0:00:09]} Nf6 {[%emt 0:00:03]} 4. g3 {[%emt 0:00:06]} Bb4+ {[%emt 0:00:03]} 5. Nbd2 {[%emt 0:00:07]} O-O {[%emt 0:00:35]} 6. Bg2 {[%emt 0:00:11]} dxc4 {[%emt 0:03:55]} 7. O-O {[%emt 0:00:25]} c3 {[%emt 0:02:02]} 8. bxc3 {[%emt 0:00:09]} Bxc3 {[%emt 0:00:52]} 9. Rb1 $1 {[%emt 0:00:05]} Bxd4 {[%emt 0:03:58] E04: Open Catalan: 5 Nf3.} 10. Nxd4 {[%emt 0:00:16]} Qxd4 {[%emt 0:00:14]} 11. Bb2 {[%emt 0:00:50]} (11. Bxb7 Bxb7 12. Rxb7 Na6 $15) (11. Qc2 {feels hotter.} Nbd7 12. Ba3 Re8 13. e3) 11... Qd8 {[%emt 0:01:38] The position is equal.} 12. Qc2 {[%emt 0:01:16]} Nbd7 {[%emt 0:08:05]} 13. Rfd1 {[%emt 0:01:01] [#]} Qe7 $146 {[%emt 0:27:10]} ({Predecessor:} 13... a5 14. Nc4 a4 15. Ba3 Re8 16. Ne5 Ra6 17. h3 Nd5 18. Nc4 Rc6 19. Qd3 b5 {0-1 Senthil,M (2246)-Golubka,P (2452) Titled Tuesday intern op 09th Feb blitz 2021 (2)}) 14. Qxc7 {[%emt 0:03:26][%cal Oc7c3]} Nd5 {[%emt 0:00:35] Repels Qc3} 15. Qc1 {[%emt 0:06:00][%mdl 1024] Black must now prevent Ba3. White has compensation.} Rd8 {[%emt 0:09:22]} 16. Ne4 {[%emt 0:07:50] And now Ba3 would win.} b5 {[%emt 0:05:47]} 17. Nc3 {[%emt 0:02:21] White has more active pieces.} Bb7 {[%emt 0:05:25]} 18. Ba3 {[%emt 0:05:59] A strong pair of Bishops.} (18. Nxd5 Bxd5 19. Bxd5 exd5 $14) 18... Qf6 {[%emt 0:05:43] Black is on the road to losing.} 19. Ne4 $36 {[%emt 0:01:17][%mdl 2048] White has the initiative.} (19. Bxd5 Bxd5 20. Nxd5 exd5 $14) 19... Qg6 {[%emt 0:01:59] [#]} ({Black should play} 19... Qe5 $1 $14) 20. Nd6 $1 $16 {[%emt 0:01:20]} (20. Rxb5 $6 Rac8 21. Qb2 N7b6 $14) 20... Rac8 {[%emt 0:03:57]} (20... b4 $16 {keeps fighting.}) 21. Nxc8 $18 {[%emt 0:02:11]} Rxc8 {[%emt 0:00:03]} 22. Qb2 {[%emt 0:01:46]} a6 {[%emt 0:03:59]} (22... Bc6 {might work better.} 23. Rbc1 h6) 23. Rbc1 {[%emt 0:00:36]} Re8 {[%emt 0:01:28]} 24. Qc2 {[%emt 0:00:54]} (24. Qd4 $142) 24... Qh5 $2 {[%emt 0:04:35]} (24... f5 {is tougher.} 25. e4 fxe4 26. Qxe4 (26. Bxe4 Qh5 $18) 26... Qxe4 27. Bxe4 Ne5) 25. e4 {[%emt 0:02:28]} N5f6 {[%emt 0:01:16] [#]} 26. Rxd7 {[%emt 0:04:26][%mdl 576] Decoy} Nxd7 {[%emt 0:01:40]} 27. Qc7 {[%emt 0:00:23][%csl LRb7,LRd7]} Ne5 {[%emt 0:01:53]} 28. Qxb7 {[%emt 0:01:01]} Rd8 {[%emt 0:01:21] [#]} (28... h6 $142 29. Qxa6 Rd8) 29. Qc8 $3 {[%emt 0:04:18][%cal Rc8d8][%mdl 576] Back Rank} Qd1+ {[%emt 0:01:11]} 30. Rxd1 {[%emt 0:00:07][%cal Rd1d8]} Rxc8 {[%emt 0:00:04]} 31. Bf1 {[%emt 0:01:23]} h6 {[%emt 0:00:39]} 32. f4 {[%emt 0:00:24]} Ng4 {[%emt 0:00:05]} 33. Bh3 {[%emt 0:01:13]} Ne3 {[%emt 0:00:25]} 34. Rc1 {[%emt 0:00:15]} Rd8 {[%emt 0:00:11]} 35. Bc5 {[%emt 0:01:35]} Nc4 {[%emt 0:00:50]} 36. Bf1 {[%emt 0:02:52]} Nd2 {[%emt 0:00:08]} 37. e5 {[%emt 0:05:12]} Ne4 $2 {[%emt 0:00:22]} (37... Nxf1 {was worth a try.} 38. Rxf1 Rc8) 38. Be3 {[%emt 0:01:14]} Nd2 {[%emt 0:00:44]} 39. Be2 {[%emt 0:00:32] aiming for Rd1.} Ne4 {[%emt 0:00:38]} 40. Rc6 {[%emt 0:00:00]} b4 {[%emt 0:00:00]} 41. Rxa6 {[%emt 0:01:33]} Nc3 {[%emt 0:00:37]} 42. Kf2 {[%emt 0:01:09]} Nd5 {[%emt 0:00:19]} 43. Bc4 {[%emt 0:01:08]} Nc3 {[%emt 0:00:47]} 44. Bb3 {[%emt 0:00:35]} Nd5 {[%emt 0:01:52]} 45. Rd6 {[%emt 0:00:23]} Rc8 {[%emt 0:00:04]} 46. Bxd5 {[%emt 0:00:11]} Rc2+ {[%emt 0:00:08]} 47. Ke1 {[%emt 0:02:19]} exd5 {[%emt 0:03:43]} 48. Rxd5 {[%emt 0:00:08]} Rxa2 {[%emt 0:00:30][%mdl 4096] Endgame KRB-KR} 49. Rd2 {[%emt 0:00:12]} Ra1+ {[%emt 0:00:37]} 50. Ke2 {[%emt 0:00:14]} Kh7 {[%emt 0:01:17]} 51. Rb2 {[%emt 0:00:33]} Rh1 {[%emt 0:01:05]} 52. Kd3 {[%emt 0:00:06]} Kg6 {[%emt 0:00:09]} 53. Ke4 {[%emt 0:00:35]} Kh5 {[%emt 0:00:46]} 54. Kf3 {[%emt 0:00:32]} g6 {[%emt 0:00:41]} 55. Bf2 {[%emt 0:00:23][%csl Gf3][%cal Rg3g4]} g5 {[%emt 0:00:20]} 56. g4+ {[%emt 0:00:33]} Kg6 {[%emt 0:00:05]} 57. f5+ {[%emt 0:00:04]} Kg7 {[%emt 0:00:09]} 58. Kg2 {[%emt 0:00:11]} (58. Rxb4 $142 Ra1 59. Rb8 h5 60. e6 Ra3+ 61. Kg2 fxe6 62. fxe6 Kf6 63. e7 {[%mdl 64] Decoy}) 58... Rd1 {[%emt 0:00:16]} 59. Rxb4 {[%emt 0:00:10] White mates.} Rd5 {[%emt 0:00:05]} 60. Rb7 {[%emt 0:00:17]} Kg8 {[%emt 0:00:34]} 61. Bg3 {[%emt 0:00:42]} Rd4 {[%emt 0:00:40]} 62. Kf3 {[%emt 0:00:08]} Ra4 {[%emt 0:00:24]} 63. e6 {[%emt 0:00:28] Weighted Error Value: White=0.31/Black=0.60} 1-0

[Event "European Women-ch 2023"]
[Site "Petrovac"]
[Date "2023.03.20"]
[Round "3.19"]
[White "Vidic, Teja"]
[Black "Lazarne Vajda, Szidonia"]
[Result "0-1"]
[ECO "C41"]
[WhiteElo "2097"]
[BlackElo "2294"]
[Annotator "TA"]
[PlyCount "158"]
[EventDate "2023.03.15"]
[EventType "swiss"]
[EventCountry "MNE"]
[SourceTitle "playchess.com"]
[Source "ChessBase"]
[SourceQuality "1"]
[TimeControl "40/5400+30:1800+30"]

{[%evp 16,158,49,31,42,51,38,45,41,21,18,25,8,7,11,9,12,18,26,26,23,12,18,15,28,-126,-19,-14,-13,-12,-11,-18,-8,-12,0,0,0,0,0,-34,-35,-55,-10,-23,-11,-65,-52,-49,-51,-47,-13,-18,-11,-58,-6,-8,0,-50,-50,-47,-47,-75,-78,-189,-160,-153,-105,-100,-50,-39,-13,-23,-9,-17,-12,-22,-19,-19,-8,-8,-8,-12109,-5695,-12655,-12639,-12849,-1538,-29936,-29940,-29954,-29939,-285,-29942,-29942,-29939,-29950,-29957,-29956,-29958,-29958,-29953,-29945,-29953,-29953,-29954,-29961,-29952,-5089,-12731,-29971,-29972,-29972,-29973,-29974,-29975,-29976,-29975,-29975,-29976,-29976,-29977,-29977,-29978,-29978,-29978,-29978,-29979,-29979,-29974,-29973,-29974,-29974,-29975,-29975,-29976,-29979,-29980,-29980,-29981,-29981,-29982,-29982,-29983,-29983,-29984]} 1. e4 {[%emt 0:00:03]} d6 {[%emt 0:00:15]} 2. d4 {[%emt 0:00:06]} Nf6 {[%emt 0:00:09]} 3. Nc3 {[%emt 0:00:08]} e5 {[%emt 0:00:14]} 4. Nf3 {[%emt 0:00:14]} Nbd7 {[%emt 0:00:08]} 5. Bc4 {[%emt 0:00:06]} Be7 {[%emt 0:00:10]} 6. a4 {[%emt 0:00:06]} O-O {[%emt 0:00:30]} 7. a5 {[%emt 0:00:05]} c6 {[%emt 0:01:43]} 8. O-O {[%emt 0:00:15]} h6 {[%emt 0:00:48]} 9. Re1 {[%emt 0:03:37] 9.Re1 is better than 9.h3.} Re8 {[%emt 0:02:50] C41: Philidor Defence.} 10. h3 {[%emt 0:03:05]} exd4 {[%emt 0:01:55]} 11. Nxd4 {[%emt 0:07:39]} Bf8 {[%emt 0:00:21] White is slightly better.} 12. a6 {[%emt 0:06:52]} Nc5 {[%emt 0:07:35][%csl LRa6,LRe4]} 13. axb7 {[%emt 0:09:18]} Bxb7 {[%emt 0:00:16][%cal Rf6e4] [#]} 14. f3 $146 {[%emt 0:00:10]} ({Predecessor:} 14. Bd3 Nxd3 15. cxd3 g6 16. Nb3 a5 17. Be3 c5 18. f3 Bc6 19. Ra2 d5 20. Bf2 dxe4 21. dxe4 {½-½ Petrov,M (2439)-Vutov,M (2334) BUL-ch 82nd Kozloduy 2018 (8)}) 14... d5 {[%emt 0:02:46]} 15. exd5 {[%emt 0:00:33]} Rxe1+ {[%emt 0:00:10]} 16. Qxe1 {[%emt 0:00:04]} cxd5 {[%emt 0:00:21]} 17. Bf1 {[%emt 0:02:21]} Qb6 {[%emt 0:07:00]} 18. Qf2 {[%emt 0:02:24]} Re8 {[%emt 0:03:15]} 19. Bb5 {[%emt 0:08:45]} Rc8 {[%emt 0:02:01]} 20. b4 $2 {[%emt 0:05:30]} (20. Na4 $11 Nxa4 21. Bxa4) 20... Ne6 {[%emt 0:02:34]} (20... Nce4 $1 $17 {[%cal Re4f2]} 21. fxe4 Rxc3) 21. Nxe6 $11 {[%emt 0:07:17]} Qxf2+ {[%emt 0:02:28]} 22. Kxf2 {[%emt 0:00:09]} fxe6 {[%emt 0:00:19]} (22... Rxc3 23. Nxf8 (23. Rxa7 $2 Rxc2+ 24. Ke1 fxe6 $19) 23... a6 24. Bd3 (24. Bxa6 Bxa6 25. Rxa6 Rxc2+ 26. Ke3 Rxc1 $16) 24... Kxf8 25. b5 (25. Bxa6 $2 Bxa6 26. Ra2 Bc4 $19) 25... axb5 26. Ra7 $18) 23. Ne2 {[%emt 0:05:13]} Bxb4 {[%emt 0:00:30]} 24. Be3 $1 {[%emt 0:00:44]} a5 {[%emt 0:04:49]} 25. c3 {[%emt 0:05:34]} Bxc3 {[%emt 0:01:26]} 26. Nxc3 {[%emt 0:00:06]} Rxc3 {[%emt 0:00:05]} 27. Rxa5 {[%emt 0:00:06]} (27. Bd4 $5 {[%cal Rd4c3]} Rc2+ 28. Ke1 $11) 27... e5 {[%emt 0:08:06]} 28. Ra7 {[%emt 0:02:30]} Bc8 {[%emt 0:09:16]} 29. Re7 {[%emt 0:06:54]} Rc2+ {[%emt 0:04:45]} 30. Kf1 {[%emt 0:00:14]} (30. Kg1 $11) 30... d4 $1 $15 {[%emt 0:01:11]} 31. Bf2 {[%emt 0:01:53]} Rc5 {[%emt 0:05:04]} 32. Bd3 {[%emt 0:04:50]} Kf8 {[%emt 0:02:16]} 33. Ra7 {[%emt 0:00:14]} Nd5 {[%emt 0:02:28]} 34. Be4 {[%emt 0:04:27]} (34. Be1 $11 {was preferrable.}) 34... Nc3 {[%emt 0:12:30]} (34... Be6 $15) 35. Bd3 {[%emt 0:03:33]} Nd5 {[%emt 0:05:23]} 36. Be4 {[%emt 0:00:05]} Be6 {[%emt 0:01:54]} 37. Be1 {[%emt 0:05:07]} Ne3+ {[%emt 0:02:55]} 38. Kf2 {[%emt 0:00:30] Hoping for Bb4.} Rb5 {[%emt 0:00:16] Prevents Bb4+.} 39. g4 {[%emt 0:02:21]} (39. Rb7 $17 Rxb7 40. Bxb7) 39... Bd5 {[%emt 0:03:30]} 40. Bxd5 {[%emt 0:00:00] Strongly threatening Be4.} Nxd5 $17 {[%emt 0:00:00][%mdl 4096] Endgame KRB-KRN} (40... Rxd5 41. Rb7 $15) (40... Rb2+ $142 41. Bd2 Rxd2+ 42. Ke1 Rh2) 41. Bd2 {[%emt 0:09:30]} Rb2 {[%emt 0:05:40]} (41... Nf6 $1 $17 {Threatens to win with ...e4.} 42. Bc1 Rb1 43. Ba3+ Kg8 44. Ra8+ Kh7) 42. Ke1 $15 {[%emt 0:02:30]} Rb3 {[%emt 0:00:57]} (42... g5 $5 {[%cal Rb2b3]}) 43. Ra5 {[%emt 0:03:41]} Nf6 {[%emt 0:00:23] ...g5 is the strong threat.} 44. Rxe5 {[%emt 0:05:26]} (44. Ke2 e4 45. fxe4 Rxh3 $17) 44... Rxf3 {[%emt 0:00:06]} 45. g5 {[%emt 0:03:31]} hxg5 {[%emt 0:00:41]} 46. Bxg5 {[%emt 0:00:06]} Rxh3 {[%emt 0:00:10]} 47. Bxf6 {[%emt 0:04:44]} gxf6 $11 {[%emt 0:00:06] KR-KR} 48. Rd5 {[%emt 0:00:04][%mdl 8192] This move loses the game for White.} (48. Re4 $11) 48... Rh4 $1 $19 {[%emt 0:02:16]} 49. Rd7 {[%emt 0:00:09]} Ke8 {[%emt 0:00:53]} (49... f5 50. Ke2 $11) 50. Ra7 {[%emt 0:00:05] [#]} Re4+ $1 {[%emt 0:00:40]} (50... f5 51. Ke2 $15) 51. Kd2 {[%emt 0:01:56] [#]} Re7 $1 {[%emt 0:00:21]} ({Not} 51... f5 52. Kd3 $11) 52. Ra4 {[%emt 0:01:48]} Rd7 {[%emt 0:01:42]} 53. Kd3 {[%emt 0:01:07]} Kf7 {[%emt 0:00:06]} (53... f5 54. Ra5 $11 (54. Rxd4 Rxd4+ 55. Kxd4 Kf8 $11)) 54. Ra1 {[%emt 0:04:27]} Rd5 {[%emt 0:04:23]} ({Worse is} 54... f5 55. Ra6 $11) 55. Ke4 {[%emt 0:02:31]} Rd6 {[%emt 0:00:12]} 56. Kd3 {[%emt 0:01:01]} f5 {[%emt 0:00:53]} 57. Rh1 {[%emt 0:00:40]} Kg6 {[%emt 0:00:40]} 58. Rg1+ {[%emt 0:00:32]} Kf6 {[%emt 0:00:29]} 59. Rf1 {[%emt 0:01:08]} Rd7 {[%emt 0:01:31]} 60. Rf2 {[%emt 0:00:26]} Kg5 {[%emt 0:00:17]} 61. Rf1 {[%emt 0:01:37]} f4 {[%emt 0:00:29][%cal Bf5f4,Bf4f3][%mdl 32] ( -> ...Kg4)} 62. Rg1+ {[%emt 0:00:13]} Kf5 {[%emt 0:00:06] Black mates.} 63. Rg8 {[%emt 0:00:18]} f3 {[%emt 0:00:33]} 64. Rf8+ {[%emt 0:00:13]} Kg4 {[%emt 0:00:05]} 65. Rg8+ {[%emt 0:00:26]} Kf4 {[%emt 0:00:05]} 66. Rf8+ {[%emt 0:00:04]} Kg3 {[%emt 0:00:03]} 67. Rg8+ {[%emt 0:00:09]} Kf2 {[%emt 0:00:23]} 68. Rf8 {[%emt 0:00:18]} Kg2 {[%emt 0:00:18]} 69. Rg8+ {[%emt 0:00:35]} Kf1 {[%emt 0:00:06]} 70. Rf8 {[%emt 0:00:05]} f2 {[%emt 0:00:21]} 71. Rg8 {[%emt 0:00:54]} Ra7 {[%emt 0:04:27]} 72. Kd2 {[%emt 0:00:25]} Ra2+ {[%emt 0:01:08]} 73. Kd1 {[%emt 0:00:07]} d3 {[%emt 0:00:28]} 74. Rg7 {[%emt 0:02:52]} d2 {[%emt 0:00:13]} 75. Rf7 {[%emt 0:00:29]} Ra1+ {[%emt 0:00:15]} ({Inferior is} 75... Kg2 76. Rxf2+ Kxf2 $11) 76. Kxd2 {[%emt 0:00:07]} Kg2 {[%emt 0:00:12]} 77. Rg7+ {[%emt 0:00:10]} Kh3 {[%emt 0:00:09]} 78. Rh7+ {[%emt 0:00:33]} Kg4 {[%emt 0:00:05]} 79. Rg7+ {[%emt 0:00:13]} Kh5 {[%emt 0:00:05] Weighted Error Value: White=0.38/Black=0.12 (very precise)} 0-1

[Event "European Women-ch 2023"]
[Site "Petrovac"]
[Date "2023.03.20"]
[Round "3.19"]
[White "Bassari, Senem Gul"]
[Black "Abdinova, Narmin"]
[Result "0-1"]
[ECO "C90"]
[WhiteElo "1524"]
[BlackElo "2090"]
[Annotator "TA"]
[PlyCount "58"]
[EventDate "2023.03.15"]
[EventType "swiss"]
[EventCountry "MNE"]
[SourceTitle "playchess.com"]
[Source "ChessBase"]
[SourceQuality "1"]
[TimeControl "40/5400+30:1800+30"]

{[%evp 17,57,36,30,28,46,9,10,4,7,-67,-73,-159,-152,-186,-197,-243,-99,-115,-124,-218,-147,-236,-128,-133,0,-95,73,-162,-54,-83,-67,-369,-344,-481,-459,-818,-821,-1581,-1402,-29998,-29999,-29999]} 1. e4 {[%emt 0:00:05]} e5 {[%emt 0:00:49]} 2. Nf3 {[%emt 0:00:11]} Nc6 {[%emt 0:00:07]} 3. Bb5 {[%emt 0:00:10]} a6 {[%emt 0:00:42]} 4. Ba4 {[%emt 0:00:10]} Nf6 {[%emt 0:00:16]} 5. O-O {[%emt 0:00:16]} Be7 {[%emt 0:00:39]} 6. Re1 {[%emt 0:00:17]} b5 {[%emt 0:00:14]} 7. Bb3 {[%emt 0:00:02]} d6 {[%emt 0:01:10]} 8. c3 {[%emt 0:00:08]} Na5 {[%emt 0:00:18]} 9. Bc2 {[%emt 0:00:13]} c5 {[%emt 0:00:14]} 10. h3 {[%emt 0:01:39] C90: Closed Ruy Lopez with 7...d6: Early deviations.} g5 {[%emt 0:00:48] [#] 10...Qc7 is setting a new trend.} 11. b4 $146 {[%emt 0:11:29]} (11. Nxg5 Rg8 12. d4 h6 13. dxe5 dxe5 14. Qxd8+ Bxd8 $11) (11. d4 {is interesting.} g4 12. hxg4 Nxg4 13. b4) ({Predecessor:} 11. d4 g4 12. hxg4 Nxg4 13. b4 Nc4 14. a4 Bd7 15. bxc5 dxc5 16. Nbd2 Bh4 17. Nxh4 Qxh4 {0-1 Kaasen,T (2452)-Demchenko,A (2632) Sitges Sunway op 9th 2022 (4)}) 11... cxb4 {[%emt 0:18:34]} 12. cxb4 {[%emt 0:38:31] The position is equal.} Nc6 13. Bb3 {[%emt 0:00:00]} (13. a4 $1 $11) 13... g4 {[%emt 0:23:17]} (13... Nxb4 14. Nxg5 Rf8 15. d4 $16) (13... Rg8 $5 {[%cal Rg5g4]}) 14. Ng5 {[%emt 0:00:00]} (14. hxg4 $142 Bxg4 15. Bb2) 14... Rf8 {[%emt 0:02:10]} 15. Bb2 {[%emt 0:11:39]} gxh3 {[%emt 0:21:38]} (15... Nxb4 16. d4) 16. g3 {[%emt 0:08:59]} (16. Nc3 {was worth a try.}) 16... h6 {[%emt 0:06:52]} (16... Nxb4 17. d4) (16... Bg4 $19 {has better winning chances.} 17. Nf3 Rc8) 17. Nf3 $17 {[%emt 0:10:49]} Bg4 {[%emt 0:01:56]} 18. a3 {[%emt 0:04:44]} (18. d4 $17) 18... Rc8 {[%emt 0:03:53] Strongly threatening ...Nh7.} 19. Qe2 {[%emt 0:03:32] [#]} (19. d4 $17) 19... h2+ {[%emt 0:09:47]} 20. Kh1 {[%emt 0:03:00]} Bh5 {[%emt 0:01:26]} (20... h5 $17 {[%cal Oh5h4] White must now prevent ...h4!} 21. d3 h4) 21. a4 {[%emt 0:02:36]} (21. d3 $11) 21... d5 $2 {[%emt 0:01:13]} (21... Nh7 $17 {keeps the pressure on. ...Ng5 is the strong threat.} 22. Qe3 Bg5 23. Nxg5 Nxg5) 22. d3 $2 {[%emt 0:01:48] [#]} (22. exd5 $16 {is forced if you want to stay better.} Nxd5 23. axb5 axb5 24. Kxh2) 22... d4 {[%emt 0:02:51]} (22... Bxb4 23. exd5 Nxd5 24. axb5 axb5 25. Rc1 $17) (22... dxe4 $1 $19 23. dxe4 Bxb4) 23. axb5 {[%emt 0:00:46]} axb5 {[%emt 0:00:16]} (23... Nxb4 24. bxa6 Qb6 25. a7 $16 (25. Kxh2 Nxa6 26. Ba4+ Kd8 $11)) 24. Na3 $2 {[%emt 0:00:38][%mdl 8192]} (24. Rc1 $15) 24... Nh7 $19 {[%emt 0:00:59][%cal Bf6h7,Bh7g5,Bg5f3][%mdl 32]} ({Not} 24... Nxb4 25. Nxb5 Nd7 26. Ba4 $15 (26. Kxh2 Qb6 $17)) (24... Bxb4 $2 25. Reb1 $19) 25. Bd1 {[%emt 0:00:39]} Ng5 {[%emt 0:00:11]} ({Stronger than} 25... Nxb4 26. Qd2 Bxf3+ 27. Bxf3 $15) (25... Bxb4 $2 {is the wrong capture.} 26. Qc2 $19) 26. Qd2 {[%emt 0:00:34]} (26. Qf1 $142 Nxf3 27. Re2) 26... Bxf3+ {[%emt 0:01:55]} 27. Kxh2 {[%emt 0:00:18]} Qd7 {[%emt 0:00:11] ( -> ...Qh3+)} 28. Bxf3 {[%emt 0:00:43]} Qh3+ {[%emt 0:00:06][%mdl 64] Zwischenzug} 29. Kg1 {[%emt 0:00:06]} Nxf3# {[%emt 0:00:05] A cool game by Abdinova.   Weighted Error Value: White=1.32/Black=0.57} 0-1